bitfinex-derivatives/quotes_BTCF0:USTF0_20251103
["timestamp","ask_amount","ask_price","bid_price","bid_amount"]
[1762190681192,0.3582415,107270.0,107260.0,0.25558649]
[1762190681487,0.7190415,107270.0,107260.0,0.59998649]
[1762190681991,0.74420436,107270.0,107260.0,0.59986649]
[1762190682397,0.24607436,107270.0,107260.0,0.97959649]
[1762190682586,0.36926436,107270.0,107260.0,1.07284669]
[1762190682787,0.36926436,107270.0,107260.0,0.97959649]
[1762190683092,0.3441015,107270.0,107260.0,0.97959649]
[1762190683289,0.36910747,107270.0,107260.0,1.07284669]
[1762190684096,0.36910747,107270.0,107260.0,0.96066649]
[1762190684593,0.36910747,107270.0,107260.0,1.05391669]
[1762190684785,0.36910747,107270.0,107260.0,0.96066649]
[1762190684987,0.72990747,107270.0,107260.0,0.59986649]
[1762190685191,0.75493767,107270.0,107260.0,0.59986649]
[1762190685489,0.36910747,107270.0,107260.0,1.05391669]
[1762190687291,0.36910747,107270.0,107260.0,0.96066649]
[1762190687492,0.36910747,107270.0,107260.0,0.59986649]
[1762190688197,0.72990747,107270.0,107260.0,0.59986649]
[1762190688396,0.75493767,107270.0,107260.0,0.59986649]
[1762190688601,0.39413767,107270.0,107260.0,0.59986649]
[1762190688794,0.75493767,107270.0,107260.0,0.59986649]
[1762190690901,0.75493767,107270.0,107260.0,0.25558649]
[1762190691493,0.75493767,107270.0,107260.0,0.00307649]
[1762190691799,0.97360251,107270.0,107260.0,0.00307649]
[1762190692195,1.31616251,107270.0,107260.0,0.00307649]
[1762190693398,1.34967784,107270.0,107260.0,0.00307649]
[1762190693597,1.32450592,107270.0,107260.0,0.00307649]
[1762190694099,1.13101304,107270.0,107260.0,0.00307649]
[1762190694301,1.09719943,107270.0,107260.0,0.00307649]
[1762190694497,1.09715943,107270.0,107260.0,0.00307649]
[1762190694698,0.75507943,107270.0,107260.0,0.00307649]
[1762190695007,0.97374427,107270.0,107260.0,0.00307649]
[1762190695204,1.32390592,107270.0,107260.0,0.00307649]
[1762190695403,1.34907337,107270.0,107260.0,0.00307649]
[1762190696597,0.69520703,107270.0,107260.0,0.33779669]
[1762190696792,0.69520703,107270.0,107260.0,1.27807153]
[1762190696793,0.05017342,107270.0,107260.0,1.27807153]
[1762190697006,0.05017342,107270.0,107260.0,1.05940669]
[1762190697201,0.02516745,107280.0,107270.0,0.3347115]
[1762190697397,0.20181384,107290.0,107280.0,0.4047828]
[1762190697603,0.20181384,107290.0,107280.0,1.1076628]
[1762190698002,0.14327278,107290.0,107280.0,1.1076628]
[1762190699112,0.14327278,107290.0,107280.0,1.11687455]
[1762190700506,0.14327278,107290.0,107280.0,1.48403939]
[1762190700801,2.78e-06,107290.0,107280.0,1.80976906]
[1762190701215,2.78e-06,107290.0,107280.0,2.01584374]
[1762190701502,2.78e-06,107290.0,107280.0,1.67428374]
[1762190701703,2.78e-06,107290.0,107280.0,1.53425261]
[1762190701904,2.78e-06,107290.0,107280.0,1.49877455]
[1762190702105,2.78e-06,107290.0,107280.0,1.57336813]
[1762190702407,2.78e-06,107290.0,107280.0,1.27024813]
[1762190703000,2.78e-06,107290.0,107280.0,1.27016813]
[1762190703510,2.78e-06,107290.0,107280.0,1.19553455]
[1762190703511,0.32627708,107290.0,107280.0,1.19553455]
[1762190703805,2.78e-06,107290.0,107280.0,0.95406455]
[1762190704002,0.32627708,107290.0,107280.0,0.95673175]
[1762190704196,0.68707708,107290.0,107280.0,0.0959]
[1762190704403,0.393353,107280.0,107270.0,0.40875]
[1762190704904,0.393353,107280.0,107260.0,0.37311194]
[1762190704905,0.3262917,107270.0,107260.0,0.36387649]
[1762190705098,0.3262917,107270.0,107260.0,0.75402649]
[1762190705299,0.3262917,107270.0,107260.0,0.45977649]
[1762190706615,0.3933615,107280.0,107270.0,0.0959]
[1762190706808,0.30012,107280.0,107270.0,0.5499416]
[1762190707302,0.06707,107280.0,107270.0,0.5499416]
[1762190707611,2.78e-06,107290.0,107280.0,0.1891329]
[1762190707612,0.23305278,107290.0,107280.0,0.1891329]
[1762190707904,0.32627698,107290.0,107280.0,0.79922]
[1762190708106,0.32627698,107290.0,107280.0,0.8924529]
[1762190708413,0.32627698,107290.0,107280.0,0.7965929]
[1762190708607,0.32627698,107290.0,107280.0,0.8445429]
[1762190708800,0.23305278,107290.0,107280.0,0.5019829]
[1762190709002,0.23305278,107290.0,107280.0,0.5499329]
[1762190709913,0.23305278,107290.0,107280.0,0.6984329]
[1762190710103,0.12104278,107290.0,107280.0,0.6984329]
[1762190710898,0.21426698,107290.0,107280.0,0.6984329]
[1762190711103,0.32627698,107290.0,107280.0,0.6052]
[1762190711406,0.32627698,107290.0,107280.0,0.5840129]
[1762190711607,0.32627698,107290.0,107280.0,0.49078]
[1762190711805,0.32627698,107290.0,107280.0,0.53873]
[1762190712011,0.32627698,107290.0,107280.0,0.58668]
[1762190712404,0.23305278,107290.0,107280.0,1.0407129]
[1762190712708,0.32627698,107290.0,107280.0,0.94748]
[1762190713014,0.32627698,107290.0,107280.0,0.89921]
[1762190713314,0.32627698,107290.0,107280.0,0.94716]
[1762190713503,0.90574182,107290.0,107280.0,0.1485]
[1762190713705,0.3262916,107270.0,107260.0,0.61906704]
[1762190713905,0.23305,107270.0,107260.0,0.96090704]
[1762190714211,0.3262916,107270.0,107260.0,0.96090704]
[1762190714810,0.3262916,107270.0,107260.0,0.55302349]
[1762190715112,0.3262916,107270.0,107260.0,0.86746004]
[1762190715308,0.3262916,107270.0,107260.0,0.52582004]
[1762190715528,0.3262916,107270.0,107260.0,0.44053649]
[1762190715812,0.3262916,107270.0,107260.0,0.53378679]
[1762190716009,0.3262916,107270.0,107260.0,0.89458679]
[1762190716215,0.3959359,107280.0,107270.0,0.1296616]
[1762190716616,0.3959359,107280.0,107270.0,0.03642]
[1762190716617,0.3959329,107280.0,107270.0,0.03642]
[1762190716805,0.3288716,107270.0,107260.0,0.72364649]
[1762190717013,0.3288716,107270.0,107260.0,0.80858004]
[1762190717217,0.3288716,107270.0,107260.0,0.46634004]
[1762190717510,0.3288716,107270.0,107260.0,0.80854004]
[1762190718117,0.6896716,107270.0,107260.0,0.10554004]
[1762190718312,0.6896716,107270.0,107260.0,0.00307649]
[1762190718313,0.90833644,107270.0,107260.0,0.00307649]
[1762190719619,0.6896716,107270.0,107260.0,0.00307649]
[1762190719811,0.3288716,107270.0,107260.0,0.00307649]
[1762190720013,0.6707916,107270.0,107260.0,0.00307649]
[1762190720418,1.0315916,107270.0,107260.0,0.00307649]
[1762190721713,0.6896716,107270.0,107260.0,0.00307649]
[1762190722016,1.0312316,107270.0,107260.0,0.00307649]
[1762190723418,1.0311916,107270.0,107260.0,0.00307649]
[1762190724319,1.24985644,107270.0,107260.0,0.00307649]
[1762190724912,1.0311916,107270.0,107260.0,0.00307649]
[1762190725217,0.23563,107270.0,107260.0,0.13274679]
[1762190725417,0.23563,107270.0,107260.0,0.90063034]
[1762190725619,0.3959329,107280.0,107270.0,0.01821]
[1762190725917,0.3288716,107270.0,107260.0,0.10554004]
[1762190726216,0.3288716,107270.0,107260.0,0.79812679]
[1762190726520,0.3288716,107270.0,107260.0,0.74129649]
[1762190726711,0.3288716,107270.0,107260.0,0.00307649]
[1762190726907,0.3288716,107270.0,107260.0,0.47374679]
[1762190727122,0.3288716,107270.0,107260.0,0.38049649]
[1762190727420,0.3288716,107270.0,107260.0,0.00307649]
[1762190728210,0.6896716,107270.0,107260.0,0.00307649]
[1762190728520,0.90833644,107270.0,107260.0,0.00307649]
[1762190729522,0.3006689,107250.0,107240.0,0.41654685]
[1762190729922,0.3006689,107250.0,107240.0,0.41379355]
[1762190730116,0.3006689,107250.0,107240.0,0.35438]
[1762190730324,0.3006689,107250.0,107240.0,0.4568476]
[1762190730625,0.3006689,107250.0,107240.0,0.51352707]
[1762190730822,0.3006689,107250.0,107240.0,0.42025947]
[1762190731023,0.3006689,107250.0,107240.0,0.07945947]
[1762190731221,0.20741,107250.0,107240.0,0.51332717]
[1762190731629,0.300669,107250.0,107240.0,0.51332717]
[1762190731927,0.20741,107250.0,107240.0,0.51332717]
[1762190732220,0.300669,107250.0,107240.0,0.45662294]
[1762190732616,0.3635077,107240.0,107230.0,0.54951121]
[1762190732816,0.58217254,107240.0,107230.0,0.08185491]
[1762190733024,0.3635077,107240.0,107230.0,0.42217491]
[1762190733225,0.3635077,107240.0,107230.0,0.17513131]
[1762190733425,0.3635077,107240.0,107230.0,0.52903131]
[1762190733824,0.94297254,107240.0,107230.0,0.08185491]
[1762190734527,0.3006865,107230.0,107220.0,0.54010822]
[1762190734724,0.88015134,107230.0,107220.0,0.08499917]
[1762190735622,0.3007039,107210.0,107200.0,0.3608]
[1762190735932,0.25907626,107210.0,107200.0,0.5748]
[1762190736121,0.16578236,107210.0,107200.0,0.79302032]
[1762190736322,0.4777411,107210.0,107190.0,0.52310445]
[1762190736626,0.72441578,107200.0,107190.0,0.71622445]
[1762190736926,0.72441578,107200.0,107190.0,0.67848762]
[1762190737125,0.72441578,107200.0,107190.0,0.6693082]
[1762190737325,0.94308062,107200.0,107190.0,0.1153882]
[1762190737626,0.20741,107190.0,107180.0,0.67238699]
[1762190737822,0.6615213,107190.0,107180.0,0.45838699]
[1762190738323,0.6615213,107190.0,107180.0,0.11846699]
[1762190738528,0.88018614,107190.0,107180.0,0.22389699]
[1762190738729,0.88018614,107190.0,107180.0,0.11846699]
[1762190738928,0.88018614,107190.0,107180.0,0.00307879]
[1762190739127,0.6615213,107190.0,107180.0,0.21707879]
[1762190739629,1.0014813,107190.0,107180.0,0.00307879]
[1762190740131,0.6615213,107190.0,107180.0,0.00307879]
[1762190740322,0.3007213,107190.0,107180.0,0.10850879]
[1762190740520,0.06290318,107200.0,107180.0,1.07264879]
[1762190740721,0.27031318,107200.0,107190.0,0.6681113]
[1762190741032,0.20748318,107200.0,107190.0,0.6681113]
[1762190741228,0.36361588,107200.0,107190.0,0.6681114]
[1762190741433,0.36361588,107200.0,107190.0,0.5748]
[1762190741731,0.36361588,107200.0,107190.0,0.3608]
[1762190741732,0.58228072,107200.0,107190.0,0.3608]
[1762190741930,0.3007214,107190.0,107180.0,0.91787879]
[1762190742128,0.51938624,107190.0,107180.0,0.21707879]
[1762190742323,0.51938624,107190.0,107180.0,0.34307879]
[1762190742520,0.09951,107190.0,107180.0,0.71184899]
[1762190742725,0.36362058,107200.0,107190.0,0.214]
[1762190742926,0.36362058,107200.0,107190.0,0.5748]
[1762190743127,0.36362058,107200.0,107190.0,0.214]
[1762190743335,0.72442058,107200.0,107190.0,0.214]
[1762190743524,0.72442058,107200.0,107180.0,0.57787879]
[1762190743525,0.3007215,107190.0,107180.0,0.57787879]
[1762190743725,0.3007215,107190.0,107180.0,0.91803879]
[1762190744029,0.3007215,107190.0,107180.0,1.01135899]
[1762190744536,0.3007215,107190.0,107180.0,0.91803879]
[1762190745426,0.3007215,107190.0,107180.0,0.57787879]
[1762190745625,0.3007215,107190.0,107180.0,0.34311879]
[1762190746228,0.3007215,107190.0,107180.0,0.44896879]
[1762190746421,0.3007215,107190.0,107180.0,0.55383879]
[1762190747427,0.3007215,107190.0,107180.0,0.21379879]
[1762190747624,0.3007215,107190.0,107180.0,0.00307879]
[1762190748527,0.3007215,107190.0,107180.0,0.21379879]
[1762190748734,0.43139925,107190.0,107180.0,0.00307879]
[1762190748933,0.79219925,107190.0,107180.0,0.00307879]
[1762190750335,0.6615215,107190.0,107180.0,0.21379879]
[1762190750532,0.79219925,107190.0,107180.0,0.00307879]
[1762190750738,0.2978176,107160.0,107150.0,0.66493374]
[1762190751232,0.2978176,107160.0,107150.0,1.00501374]
[1762190751431,0.3581976,107160.0,107150.0,0.57159224]
[1762190751643,0.3581976,107160.0,107150.0,0.91167224]
[1762190751836,0.20448,107160.0,107150.0,1.00501854]
[1762190752141,0.2978176,107160.0,107150.0,1.00501854]
[1762190752344,0.0933376,107160.0,107150.0,1.01418833]
[1762190753837,0.556356,107170.0,107160.0,0.1991876]
[1762190754138,0.297816,107170.0,107160.0,0.6648576]
[1762190754825,0.29788918,107170.0,107160.0,0.6648576]
[1762190755339,0.29788918,107170.0,107160.0,0.5599876]
[1762190755730,0.3581976,107160.0,107150.0,0.57159224]
[1762190755940,0.2978176,107160.0,107150.0,0.91167224]
[1762190756139,0.0933376,107160.0,107150.0,1.00501854]
[1762190756546,0.29788538,107170.0,107160.0,0.3040576]
[1762190756838,0.20455318,107170.0,107160.0,0.6648576]
[1762190757029,7.318e-05,107170.0,107160.0,1.07243535]
[1762190757233,0.2977978,107190.0,107180.0,0.21072]
[1762190757635,0.2977978,107190.0,107180.0,0.6648402]
[1762190757839,0.0933028,107200.0,107190.0,0.0933115]
[1762190758149,0.2977805,107210.0,107200.0,0.21072]
[1762190758335,0.2977805,107210.0,107200.0,0.57152]
[1762190758645,0.2977805,107210.0,107200.0,0.21072]
[1762190759535,0.3581628,107200.0,107190.0,0.57152]
[1762190759828,0.3581628,107200.0,107190.0,1.0049115]
[1762190760231,0.1955195,107210.0,107200.0,0.1991511]
[1762190760540,0.2977795,107210.0,107200.0,0.57152]
[1762190760738,0.3581628,107200.0,107190.0,0.57152]
[1762190760933,0.7189628,107200.0,107170.0,0.4541286]
[1762190761139,0.2977968,107190.0,107180.0,0.9116]
[1762190761645,0.2978089,107170.0,107160.0,0.21072]
[1762190761945,0.2978089,107170.0,107160.0,0.34008]
[1762190761946,0.78928665,107170.0,107160.0,0.34008]
[1762190762339,0.2978176,107160.0,107150.0,0.91163224]
[1762190762540,0.3581976,107160.0,107150.0,0.21079224]
[1762190762744,0.10222,107160.0,107150.0,1.00497854]
[1762190762931,0.10222,107160.0,107150.0,0.66493854]
[1762190763136,0.2978089,107170.0,107160.0,0.3040509]
[1762190763336,0.20448,107170.0,107160.0,1.0496609]
[1762190763641,0.20448,107180.0,107170.0,0.3040489]
[1762190763942,0.20448,107180.0,107170.0,0.6648489]
[1762190764138,0.2978002,107180.0,107170.0,0.6648489]
[1762190764337,0.3581802,107180.0,107170.0,0.6648489]
[1762190765244,0.26486,107180.0,107170.0,0.6648489]
[1762190765440,0.3581802,107180.0,107170.0,0.6648489]
[1762190765740,0.48885795,107180.0,107170.0,0.57152]
[1762190765945,0.48885795,107180.0,107170.0,0.91156]
[1762190765946,0.3581802,107180.0,107170.0,0.91156]
[1762190766140,0.3581802,107180.0,107170.0,0.57152]
[1762190766348,0.38245347,107180.0,107170.0,0.55076]
[1762190767636,0.2978089,107170.0,107160.0,0.6648523]
[1762190767833,0.2978089,107170.0,107160.0,1.0048923]
[1762190768240,0.6586089,107170.0,107160.0,0.21072]
[1762190768439,0.3581976,107160.0,107150.0,0.10592224]
[1762190768640,0.84967535,107160.0,107150.0,7.224e-05]
[1762190769045,1.42303535,107160.0,107150.0,7.224e-05]
[1762190769245,0.84967535,107160.0,107150.0,7.224e-05]
[1762190769440,1.21405867,107160.0,107150.0,7.224e-05]
[1762190769752,1.22318813,107160.0,107150.0,7.224e-05]
[1762190770247,0.2978438,107130.0,107120.0,0.9774969]
[1762190770444,0.2978525,107120.0,107110.0,0.2767569]
[1762190770640,0.26486,107120.0,107110.0,0.91166]
[1762190770840,0.20448,107120.0,107110.0,0.91166]
[1762190771044,0.20448,107120.0,107110.0,0.9775969]
[1762190771251,0.29791951,107120.0,107110.0,0.9775969]
[1762190771549,0.35829951,107120.0,107110.0,0.9775969]
[1762190771852,0.35829951,107120.0,107110.0,1.0050412]
[1762190772048,0.20454701,107120.0,107110.0,1.0050412]
[1762190772347,6.701e-05,107120.0,107110.0,1.13571895]
[1762190772543,6.701e-05,107120.0,107110.0,1.20165585]
[1762190773547,6.701e-05,107120.0,107110.0,1.0709781]
[1762190773747,6.701e-05,107120.0,107110.0,1.20165585]
[1762190774352,6.701e-05,107120.0,107110.0,1.0709781]
[1762190774650,6.701e-05,107120.0,107110.0,1.29501345]
[1762190774856,0.2852164,107150.0,107140.0,0.2907509]
[1762190775052,0.19187,107150.0,107140.0,0.6308309]
[1762190775353,0.2852164,107150.0,107140.0,0.6308309]
[1762190775549,0.19187,107150.0,107140.0,0.9916309]
[1762190775749,0.2852164,107150.0,107140.0,0.9916309]
[1762190777049,1.6537226,107160.0,107150.0,0.2892263]
[1762190777249,1.6537226,107160.0,107150.0,0.19588]
[1762190778150,1.6537226,107160.0,107150.0,0.6500263]
[1762190778352,1.56038,107160.0,107150.0,0.6500263]
[1762190778548,1.6537176,107160.0,107150.0,0.6500263]
[1762190778749,1.6537176,107160.0,107150.0,0.56592865]
[1762190779055,0.340005,107140.0,107130.0,0.6500437]
[1762190779354,0.340005,107140.0,107130.0,0.9901237]
[1762190779550,0.340005,107140.0,107130.0,0.6500437]
[1762190779747,0.3400225,107120.0,107110.0,0.6501612]
[1762190779957,0.3400225,107120.0,107110.0,0.96301102]
[1762190780350,0.3400225,107120.0,107110.0,1.05639222]
[1762190780545,0.3400225,107120.0,107110.0,0.9902412]
[1762190780750,0.3400225,107120.0,107110.0,0.89686]
[1762190781152,0.3400225,107120.0,107110.0,0.9902412]
[1762190781353,0.2835725,107120.0,107110.0,0.89686]
[1762190782050,0.3400225,107120.0,107110.0,0.89686]
[1762190782856,0.2835725,107120.0,107110.0,0.9902412]
[1762190783051,0.3400225,107120.0,107110.0,0.9902412]
[1762190783749,0.10055,107130.0,107120.0,0.2892524]
[1762190783956,0.0933637,107130.0,107120.0,0.6701224]
[1762190784154,0.1939137,107130.0,107120.0,0.6701224]
[1762190784349,0.1902,107130.0,107120.0,0.6701224]
[1762190784555,0.24665,107140.0,107130.0,0.2892437]
[1762190784752,0.24665,107140.0,107130.0,0.9901237]
[1762190784956,0.24665,107140.0,107130.0,1.12080145]
[1762190785163,0.1902,107140.0,107130.0,1.12080145]
[1762190785359,2.03969045,107160.0,107150.0,0.19588]
[1762190785655,2.03969045,107160.0,107150.0,0.6293063]
[1762190785656,2.06402129,107160.0,107150.0,0.6293063]
[1762190785855,1.70322129,107160.0,107150.0,0.9901063]
[1762190786059,1.67805384,107160.0,107150.0,0.9901063]
[1762190786453,1.67805384,107160.0,107150.0,0.89676]
[1762190786752,0.36825384,107160.0,107150.0,0.9901063]
[1762190786957,0.343923,107160.0,107150.0,0.89676]
[1762190787155,0.2655963,107150.0,107140.0,0.53024]
[1762190787356,0.316795,107140.0,107130.0,0.53024]
[1762190787555,0.316795,107140.0,107130.0,0.87032]
[1762190787760,0.80827275,107140.0,107130.0,0.08486]
[1762190787956,0.316795,107140.0,107130.0,0.50952]
[1762190788158,0.58482405,107150.0,107130.0,0.50952]
[1762190788159,0.2656011,107150.0,107140.0,0.16944]
[1762190788655,0.3168002,107140.0,107130.0,0.9636437]
[1762190789359,0.1769537,107130.0,107120.0,0.44566]
[1762190789660,0.39629145,107130.0,107120.0,0.3608]
[1762190789962,0.3168125,107120.0,107110.0,0.6237212]
[1762190790154,0.3168125,107120.0,107110.0,0.9637612]
[1762190790963,0.08359,107120.0,107110.0,0.9637612]
[1762190791358,0.3608,107130.0,107120.0,0.2628124]
[1762190791359,0.6264191,107130.0,107120.0,0.2628124]
[1762190792262,0.6264191,107130.0,107120.0,0.16944]
[1762190792464,0.6264191,107130.0,107120.0,0.2628125]
[1762190792668,0.3168125,107120.0,107110.0,0.9637571]
[1762190792859,0.2656225,107120.0,107110.0,0.9637571]
[1762190793361,0.0933725,107120.0,107110.0,0.9637571]
[1762190793568,0.6264202,107130.0,107120.0,0.2628125]
[1762190793758,0.2656202,107130.0,107120.0,0.6236125]
[1762190794166,0.17225,107130.0,107120.0,0.6236125]
[1762190794365,0.2656137,107130.0,107120.0,0.6236125]
[1762190794661,0.2656137,107130.0,107120.0,0.50948]
[1762190794866,0.75709145,107130.0,107120.0,0.4249]
[1762190795566,0.6264137,107130.0,107120.0,0.08486]
[1762190795765,0.6264137,107130.0,107120.0,0.34004]
[1762190796070,0.3168124,107120.0,107110.0,0.7858]
[1762190796364,0.17225,107120.0,107110.0,0.9637611]
[1762190796961,0.3168124,107120.0,107110.0,0.9637611]
[1762190797166,0.22344,107120.0,107110.0,0.9637611]
[1762190797768,0.17225,107120.0,107110.0,1.09443885]
[1762190798069,0.08359,107120.0,107110.0,1.02991212]
[1762190798257,0.08359,107120.0,107110.0,1.16058987]
[1762190798657,0.1769597,107130.0,107120.0,0.1782324]
[1762190798865,0.17225,107130.0,107120.0,0.75429015]
[1762190799168,0.22344,107140.0,107130.0,0.2628038]
[1762190799366,0.22344,107140.0,107130.0,0.9636438]
[1762190799962,0.22344,107140.0,107130.0,1.16047257]
[1762190799963,0.17225,107140.0,107130.0,1.16047257]
[1762190800269,1.653725,107160.0,107150.0,0.2627863]
[1762190800462,1.653725,107160.0,107150.0,0.6028263]
[1762190800665,1.78440275,107160.0,107150.0,0.50948]
[1762190800960,1.653725,107160.0,107150.0,0.50948]
[1762190801577,1.653725,107160.0,107150.0,0.6028263]
[1762190801975,1.653725,107160.0,107150.0,0.50948]
[1762190802271,0.45665275,107160.0,107150.0,0.16944]
[1762190802474,0.45665275,107160.0,107150.0,0.50944]
[1762190804277,0.45665275,107160.0,107150.0,0.6027863]
[1762190804479,0.325975,107160.0,107150.0,0.6027863]
[1762190804669,0.22249,107160.0,107150.0,0.9635863]
[1762190804872,0.3158276,107160.0,107150.0,0.9635863]
[1762190805177,0.3191076,107160.0,107150.0,0.9635863]
[1762190805765,0.1802076,107160.0,107150.0,0.9635863]
[1762190805976,0.2603476,107160.0,107150.0,0.9635863]
[1762190806167,0.3105876,107160.0,107150.0,0.97277719]
[1762190806370,0.3105876,107160.0,107150.0,0.87024]
[1762190806570,0.3105876,107160.0,107150.0,0.9635863]
[1762190807969,0.3105876,107160.0,107150.0,0.87024]
[1762190808467,0.3105876,107160.0,107150.0,0.9635863]
[1762190809271,0.3105876,107160.0,107150.0,0.87024]
[1762190809475,0.3105876,107160.0,107150.0,0.9635863]
[1762190809877,0.21725,107160.0,107150.0,0.9635863]
[1762190810276,0.2563056,107190.0,107180.0,0.2587102]
[1762190810476,0.2563015,107190.0,107180.0,0.5986302]
[1762190810683,0.21418,107200.0,107190.0,0.2587015]
[1762190810875,0.21418,107200.0,107190.0,0.62875226]
[1762190810876,0.3074828,107200.0,107190.0,0.62875226]
[1762190811271,0.3074828,107200.0,107190.0,0.44815]
[1762190812374,0.3074828,107200.0,107190.0,0.52619]
[1762190813074,0.2563015,107190.0,107180.0,0.70072]
[1762190813272,0.2563015,107190.0,107180.0,0.86611]
[1762190813478,1.7563015,107190.0,107180.0,0.86611]
[1762190813876,1.7563015,107190.0,107180.0,0.9594302]
[1762190817874,2.1171015,107190.0,107180.0,0.50531]
[1762190818079,1.7563015,107190.0,107180.0,0.16539]
[1762190818280,1.7563015,107190.0,107180.0,0.5985103]
[1762190818786,1.7563015,107190.0,107180.0,0.9593103]
[1762190819680,1.66299,107190.0,107180.0,0.9718203]
[1762190820287,0.21418,107200.0,107190.0,0.2587016]
[1762190820474,0.3074855,107200.0,107190.0,0.6195016]
[1762190820880,1.8074855,107200.0,107190.0,0.6195016]
[1762190821690,0.62415,107210.0,107200.0,0.2586929]
[1762190821880,0.62415,107210.0,107200.0,0.50511]
[1762190822085,0.62415,107210.0,107190.0,0.16539]
[1762190822086,1.8065329,107200.0,107190.0,0.16539]
[1762190822288,1.8065329,107200.0,107190.0,0.50511]
[1762190822690,1.8065329,107200.0,107190.0,0.2587016]
[1762190822887,1.8065329,107200.0,107190.0,0.16539]
[1762190823094,1.8065329,107200.0,107190.0,0.42707]
[1762190823281,1.8065329,107200.0,107190.0,0.50511]
[1762190823589,1.8065329,107200.0,107190.0,0.16539]
[1762190823790,1.8065329,107200.0,107190.0,0.50507]
[1762190824090,0.00706,107210.0,107200.0,0.1806529]
[1762190824281,0.17005,107210.0,107200.0,0.2586929]
[1762190824481,0.17005,107210.0,107200.0,0.3083529]
[1762190824679,0.0872,107210.0,107200.0,0.6691529]
[1762190824883,0.00706,107210.0,107200.0,0.88828964]
[1762190825084,0.00706,107210.0,107200.0,0.6691529]
[1762190825788,0.2633442,107210.0,107200.0,0.6194929]
[1762190825986,0.2633442,107210.0,107200.0,0.9847029]
[1762190826185,0.00706,107210.0,107200.0,0.9847029]
[1762190826795,0.1003542,107210.0,107200.0,0.9847029]
[1762190827085,0.00706,107210.0,107200.0,0.9847029]
[1762190828386,0.00706,107210.0,107200.0,1.43703964]
[1762190828580,1.5,107230.0,107200.0,1.62362177]
[1762190828787,0.21323,107240.0,107230.0,0.2586668]
[1762190829083,0.21323,107240.0,107230.0,0.5982668]
[1762190829084,0.3064981,107240.0,107230.0,0.5982668]
[1762190829390,0.4570636,107250.0,107230.0,0.9590668]
[1762190829587,0.28312838,107250.0,107240.0,0.2586581]
[1762190829785,0.3064981,107240.0,107230.0,0.6194622]
[1762190829981,0.3064981,107240.0,107230.0,0.9590622]
[1762190830496,0.003,107250.0,107240.0,0.2834181]
[1762190830698,0.003,107250.0,107240.0,0.86335484]
[1762190830995,0.003,107250.0,107240.0,1.09647484]
[1762190831186,0.1791094,107250.0,107240.0,0.86335484]
[1762190831384,0.08585,107250.0,107240.0,0.9837781]
[1762190831588,0.003,107250.0,107240.0,0.9837781]
[1762190831788,0.003,107250.0,107240.0,0.6442181]
[1762190831994,0.003,107250.0,107240.0,0.9837781]
[1762190832393,0.003,107250.0,107240.0,0.9931662]
[1762190832901,0.003,107250.0,107240.0,0.9931262]
[1762190833287,0.003,107250.0,107240.0,1.44538294]
[1762190833488,1.5,107270.0,107260.0,0.3083007]
[1762190833794,0.02332636,107270.0,107260.0,1.58855744]
[1762190833995,0.50519384,107290.0,107280.0,0.2586233]
[1762190834198,2.10857272,107290.0,107280.0,0.5981433]
[1762190834396,2.16842381,107290.0,107280.0,0.5981433]
[1762190834695,2.07519911,107290.0,107280.0,0.60769542]
[1762190835399,2.16842381,107290.0,107280.0,0.51446212]
[1762190835696,2.16842381,107290.0,107280.0,0.50491]
[1762190835890,2.16842381,107290.0,107270.0,0.15483]
[1762190835891,0.3004734,107280.0,107270.0,0.15483]
[1762190836093,0.2561921,107270.0,107260.0,0.51563]
[1762190836289,0.27943098,107270.0,107260.0,0.15483]
[1762190836494,0.27943098,107270.0,107260.0,0.49427]
[1762190837089,0.30444137,107270.0,107260.0,0.49427]
[1762190837592,0.53752137,107270.0,107260.0,0.33944]
[1762190837793,0.30444137,107270.0,107260.0,0.33944]
[1762190838099,0.3004908,107260.0,107250.0,0.61844603]
[1762190838298,0.23047888,107260.0,107250.0,0.95784603]
[1762190838600,0.18618888,107260.0,107250.0,0.95784603]
[1762190839002,0.18618888,107260.0,107250.0,1.10634603]
[1762190839795,0.27943968,107260.0,107250.0,1.10634603]
[1762190840005,0.32372968,107260.0,107250.0,1.01308773]
[1762190840304,0.23047888,107260.0,107250.0,1.10634723]
[1762190840493,0.23047888,107260.0,107250.0,0.76694723]
[1762190840689,0.32372968,107260.0,107250.0,1.10630723]
[1762190841090,0.32372968,107260.0,107250.0,1.00349]
[1762190841294,0.32372968,107260.0,107250.0,0.66413]
[1762190841495,0.32372968,107260.0,107250.0,0.7359095]
[1762190841709,0.32372968,107260.0,107250.0,0.30333]
[1762190842000,0.32372968,107260.0,107250.0,0.7359095]
[1762190842297,0.32348303,107260.0,107250.0,0.7359095]
[1762190842501,0.23023223,107260.0,107250.0,0.7359095]
[1762190842693,0.32348303,107260.0,107250.0,0.7359095]
[1762190842896,0.23023223,107260.0,107250.0,0.7359095]
[1762190843406,0.23023223,107260.0,107250.0,0.3965895]
[1762190843599,0.23023223,107260.0,107250.0,0.7358695]
[1762190843905,0.32348313,107260.0,107250.0,0.64261]
[1762190844407,0.23023223,107260.0,107250.0,0.3965897]
[1762190844704,0.32348323,107260.0,107250.0,0.64261]
[1762190844914,0.32348323,107260.0,107250.0,0.7358697]
[1762190845207,0.23023223,107260.0,107250.0,0.7358697]
[1762190845503,0.32348323,107260.0,107250.0,0.7358697]
[1762190846006,0.23023223,107260.0,107250.0,0.7358697]
[1762190846203,0.02299223,107260.0,107250.0,1.31580644]
[1762190846600,0.32348323,107260.0,107250.0,0.66413]
[1762190846802,0.32348323,107260.0,107250.0,1.00337]
[1762190847505,0.02299223,107260.0,107250.0,1.0966297]
[1762190848707,0.02299223,107260.0,107250.0,1.31576644]
[1762190848908,0.02299223,107260.0,107250.0,1.0966297]
[1762190849599,0.11624323,107260.0,107250.0,1.0966297]
[1762190849795,0.32383522,107260.0,107250.0,0.49403]
[1762190850005,0.29878323,107260.0,107250.0,0.49403]
[1762190850201,0.29878323,107260.0,107250.0,0.5872897]
[1762190850402,0.32383522,107260.0,107250.0,0.49403]
[1762190850903,0.29878323,107260.0,107250.0,0.5872897]
[1762190851208,0.32383522,107260.0,107250.0,0.5872897]
[1762190852105,0.32383522,107260.0,107250.0,0.08384]
[1762190852406,0.32383522,107260.0,107250.0,0.5892896]
[1762190853401,0.02299223,107260.0,107250.0,1.31772634]
[1762190853608,2.23e-06,107260.0,107250.0,1.64404208]
[1762190856498,0.18254223,107260.0,107250.0,0.7594296]
[1762190856714,0.27579313,107260.0,107250.0,0.15687]
[1762190856908,0.2350396,107250.0,107240.0,0.4540683]
[1762190857204,0.26009159,107250.0,107240.0,0.84706]
[1762190857404,0.5958396,107250.0,107240.0,0.07415]
[1762190857612,0.62089159,107250.0,107240.0,0.41323]
[1762190857808,0.62089159,107250.0,107240.0,0.07415]
[1762190858112,0.62089159,107250.0,107240.0,0.41323]